[Event "Super United Croatia GCT Blitz 2022"]
[Site "Zagreb"]
[Date "2022.07.23"]
[Round "5"]
[White "Firouzja, Alireza"]
[Black "Nepomniachtchi, Ian"]
[Result "1/2-1/2"]
[ECO "D00"]
[WhiteElo "2793"]
[BlackElo "2766"]
[Annotator "TA"]
[PlyCount "89"]
[EventDate "2022.07.20"]
[EventType "tourn"]
[EventCountry "CRO"]
[SourceTitle "playchess.com"]
[Source "ChessBase"]
[SourceQuality "1"]
[TimeControl "300+2"]

{[%evp 9,89,-6,8,-5,18,7,18,14,10,17,53,43,37,43,45,49,18,32,75,52,53,63,34,18,16,21,20,0,44,58,60,72,101,101,90,84,94,94,92,95,108,125,132,134,129,127,129,113,105,105,105,108,105,92,102,114,139,108,176,0,127,127,531,17,4806,4702,4132,0,0,0,0,0,0,0,0,0,0,0,0,0,0,0]} 1. d4 {[%emt 0:00:01]} Nf6 {[%emt 0:00:01]} 2. Bg5 {[%emt 0:00:01]} d5 {[%emt 0:00:04]} 3. e3 {[%emt 0:00:01]} e6 {[%emt 0:00:11]} 4. Nd2 {[%emt 0:00:06]} h6 {[%emt 0:00:06]} 5. Bh4 {[%emt 0:00:03]} c5 {[%emt 0:00:02]} 6. c3 {[%emt 0:00:07] [#] D00: 1 d4 d5: Unusual lines.} Qc7 $146 {[%emt 0:00:19]} ({Predecessor:} 6... Nc6 7. Bd3 e5 8. dxe5 Nxe5 9. Bc2 Be7 10. Ngf3 Nxf3+ 11. Nxf3 Be6 12. Qd3 Ne4 {½-½ (42) Karjakin,S (2752)-Svidler,P (2723) chess24.com INT 2020}) 7. Bd3 {[%emt 0:00:14]} b6 {[%emt 0:00:03]} 8. f4 {[%emt 0:00:11]} Nc6 {[%emt 0:00:15]} 9. Ngf3 {[%emt 0:00:22]} cxd4 {[%emt 0:00:01]} 10. cxd4 {[%emt 0:00:13]} Nb4 $1 {[%emt 0:00:01]} 11. Bb5+ {[%emt 0:00:40]} Bd7 {[%emt 0:00:01]} 12. Bxd7+ {[%emt 0:00:01]} Nxd7 {[%emt 0:00:15]} 13. O-O {[%emt 0:00:04] Black must now prevent Rc1.} Bd6 {[%emt 0:00:23]} 14. Rc1 {[%emt 0:00:30] Against Qc2} Qb7 {[%emt 0:00:02]} 15. a3 {[%emt 0:00:05]} Nc6 {[%emt 0:00:08]} (15... Nd3 $2 16. Rc2 $16) 16. Ne5 {[%emt 0:00:01]} Ne7 {[%emt 0:00:24]} 17. Bxe7 {[%emt 0:00:33]} Bxe7 {[%emt 0:00:02]} 18. Nc6 {[%emt 0:00:30]} Bd6 {[%emt 0:00:10]} 19. e4 {[%emt 0:00:27]} O-O {[%emt 0:00:28]} 20. Qf3 $36 {[%emt 0:00:06][%mdl 2048] Keeping Black busy.} Bc5 {[%emt 0:00:53]} 21. exd5 {[%emt 0:00:11]} (21. dxc5 $6 Qxc6 22. exd5 exd5 $11) 21... exd5 {[%emt 0:00:02]} 22. Qxd5 {[%emt 0:00:11][%cal Oc6e7] And now Ne7+! would win.} ({Reject} 22. dxc5 $6 Qxc6 23. Rfd1 bxc5 $11) 22... Nf6 {[%emt 0:00:01]} 23. Qf3 {[%emt 0:00:01] 0x0.001e3ab7650ddp-1022s more active pieces. The black rooks are badly placed.} Rac8 {[%emt 0:00:20]} 24. dxc5 {[%emt 0:00:03]} Rxc6 {[%emt 0:00:01]} 25. Nc4 {[%emt 0:00:19]} Qc7 {[%emt 0:00:10] [#]} 26. b4 {[%emt 0:00:06][%cal Bb2b4,Bb4c5,Bc5c6][%mdl 32]} bxc5 {[%emt 0:00:05]} 27. Ne5 {[%emt 0:00:01]} Re6 {[%emt 0:00:23]} 28. bxc5 {[%emt 0:00:01]} Nd7 {[%emt 0:00:17]} 29. Nxd7 {[%emt 0:00:10]} Qxd7 {[%emt 0:00:01]} 30. c6 {[%emt 0:00:05]} Qc7 {[%emt 0:00:01]} 31. Rc3 {[%emt 0:00:07]} Qb6+ {[%emt 0:00:02]} 32. Kh1 {[%emt 0:00:02]} Rfe8 {[%emt 0:00:14]} 33. h3 {[%emt 0:00:17]} Qc7 {[%emt 0:00:18]} (33... Rc8 $16) 34. Rcc1 $2 {[%emt 0:00:11]} (34. Rb1 $18) 34... Re3 {[%emt 0:00:02]} (34... Rc8 $11) 35. Qd5 $16 {[%emt 0:00:01]} Rxa3 $2 {[%emt 0:00:01][%mdl 8192]} (35... Rd8 $16 {is a better chance.} 36. Qc4 Rde8) 36. Rfe1 $2 {[%emt 0:00:04]} (36. Qd7 $18 Qc8 37. Rfe1) 36... Rxe1+ {[%emt 0:00:13][%mdl 8192]} (36... Rae3 $11 37. Rxe3 Rxe3) 37. Rxe1 $18 {[%emt 0:00:00] White threatens Re8+ and mate.} Qxf4 $11 {[%emt 0:00:01][%mdl 4096] Endgame [#] KQR-KQR} 38. Qd8+ $2 {[%emt 0:00:05]} (38. Qc5 $1 $18 {[%cal Rc5a3]} Qg3 39. Re8+ Kh7 40. Qf5+ Qg6 41. Qxg6+ Kxg6 42. c7) 38... Kh7 {[%emt 0:00:01] The position is equal.} 39. c7 {[%emt 0:00:04]} Rxh3+ {[%emt 0:00:01]} 40. gxh3 {[%emt 0:00:02] Threatening mate with Qd3+.} Qf3+ {[%emt 0:00:00]} 41. Kg1 {[%emt 0:00:02] Intending Qd6 and mate.} Qg3+ {[%emt 0:00:01]} 42. Kf1 {[%emt 0:00:00][%cal Oe1e3] aiming for Re3!} Qf3+ {[%emt 0:00:01]} 43. Kg1 {[%emt 0:00:01] Qh4 is the strong threat.} Qg3+ {[%emt 0:00:01]} 44. Kf1 {[%emt 0:00:01]} Qf3+ {[%emt 0:00:00]} 45. Kg1 {Black defended with fortune.  Weighted Error Value: White=0.46/Black=0.43} 1/2-1/2

[Event "Super United Croatia GCT Blitz 2022"]
[Site "Zagreb"]
[Date "2022.07.23"]
[Round "5"]
[White "Mamedyarov, Shakhriyar"]
[Black "Saric, Ivan"]
[Result "1-0"]
[ECO "D75"]
[WhiteElo "2759"]
[BlackElo "2680"]
[Annotator "TA"]
[PlyCount "145"]
[EventDate "2022.07.20"]
[EventType "tourn"]
[EventCountry "CRO"]
[SourceTitle "playchess.com"]
[Source "ChessBase"]
[SourceQuality "1"]
[TimeControl "300+2"]

{[%evp 23,145,16,9,0,0,0,27,0,0,0,0,0,0,0,0,0,25,3,12,12,18,14,20,21,14,19,117,117,117,116,124,124,124,117,117,116,124,124,139,139,139,139,139,139,139,139,139,139,139,0,139,114,114,89,89,89,89,89,89,0,89,89,89,89,146,140,203,203,203,203,203,203,203,170,203,203,1442,1441,1495,1217,1495,1289,1502,1495,1327,1387,723,1138,1033,685,621,443,436,436,429,27,27,27,27,27,33,0,52,12,1787,1787,29968,1417,29969,29970,29970,29971,29972,29971,29972,29971,29975,29974,29974,29975,29974,29972,29986,29987]} 1. d4 {[%emt 0:00:01]} Nf6 {[%emt 0:00:01]} 2. c4 {[%emt 0:00:01]} g6 {[%emt 0:00:01]} 3. Nc3 {[%emt 0:00:02]} Bg7 {[%emt 0:00:00]} 4. g3 {[%emt 0:00:04]} d5 {[%emt 0:00:11]} 5. cxd5 {[%emt 0:00:02]} Nxd5 {[%emt 0:00:01]} 6. Bg2 {[%emt 0:00:00]} Nxc3 {[%emt 0:00:04]} 7. bxc3 {[%emt 0:00:01]} c5 {[%emt 0:00:05]} 8. Nf3 {[%emt 0:00:08]} cxd4 {[%emt 0:00:38]} 9. cxd4 {[%emt 0:00:01]} Nc6 {[%emt 0:00:02]} 10. O-O {[%emt 0:00:33]} Nxd4 {[%emt 0:00:35]} 11. Nxd4 {[%emt 0:00:01]} Qxd4 {[%emt 0:00:02]} 12. Rb1 {[%emt 0:00:01]} O-O {[%emt 0:00:14]} 13. Be3 {[%emt 0:00:09] D75: Fianchetto Grünfeld: Main Line with 7...c5.} Qc4 {[%emt 0:00:18]} 14. Bd5 {[%emt 0:00:02]} Qg4 {[%emt 0:00:39]} 15. Qb3 {[%emt 0:00:19] White has an edge.} Qxe2 {[%emt 0:00:24]} 16. Bc5 {[%emt 0:00:13] Black must now prevent Rfe1.} Be6 {[%emt 0:00:52]} 17. Bxe6 {[%emt 0:00:04]} Qxe6 {[%emt 0:00:17]} 18. Qxe6 {[%emt 0:00:01]} fxe6 {[%emt 0:00:00]} 19. Rxb7 {[%emt 0:00:02] [#]} Bf6 $146 {[%emt 0:00:02]} ({Predecessor:} 19... Rf5 20. Rc7 Rd5 21. Bxe7 Rd2 22. a4 Bd4 23. Bg5 Ra2 24. Be3 Bxe3 25. fxe3 Rd8 26. Rxa7 {½-½ (26) Berkes,F (2671)-Grandelius,N (2662) Legnica 2021}) 20. Bxa7 {[%emt 0:00:10]} ({But not} 20. Bxe7 $2 Rf7 21. Bxf6 Rxb7 $19) 20... Rfc8 {[%emt 0:00:07]} 21. a4 {[%emt 0:00:06]} Kf7 {[%emt 0:00:13]} 22. Rd1 {[%emt 0:00:11]} Rc4 {[%emt 0:00:31]} 23. a5 {[%emt 0:00:01]} Ra4 {[%emt 0:00:01]} 24. Bb6 {[%emt 0:00:02]} R4xa5 {[%emt 0:00:05]} (24... Rc8 $11) 25. Bxa5 $16 {[%emt 0:00:06]} Rxa5 $11 {[%emt 0:00:00][%mdl 4096] Endgame KRR-KRB} 26. Rb6 {[%emt 0:00:04] White is more active.} Ra2 {[%emt 0:00:12]} 27. Kg2 {[%emt 0:00:08]} h5 {[%emt 0:00:03]} 28. Rb4 {[%emt 0:00:05]} Rc2 {[%emt 0:00:02]} 29. Re1 {[%emt 0:00:05]} Ra2 {[%emt 0:00:11]} 30. Ree4 {[%emt 0:00:06]} Rc2 {[%emt 0:00:03]} 31. Rb6 {[%emt 0:00:02]} e5 {[%emt 0:00:01]} 32. Rb1 {[%emt 0:00:11]} Rd2 {[%emt 0:00:01]} 33. Rbe1 {[%emt 0:00:01]} Rc2 {[%emt 0:00:01]} 34. R1e2 {[%emt 0:00:01]} Rc3 {[%emt 0:00:02]} 35. R4e3 {[%emt 0:00:07]} Rc5 {[%emt 0:00:01]} 36. Re4 {[%emt 0:00:01]} ({Better is} 36. h3 $16) 36... Rb5 {[%emt 0:00:01]} (36... Rc3 $1 $11) 37. h4 {[%emt 0:00:01]} Rc5 {[%emt 0:00:01]} 38. f3 {[%emt 0:00:01]} Rb5 {[%emt 0:00:01]} 39. Kh3 {[%emt 0:00:02]} Rb3 {[%emt 0:00:01]} 40. R4e3 {[%emt 0:00:01]} Rb1 {[%emt 0:00:04]} 41. Re4 {[%emt 0:00:05]} ({White should try} 41. Ra3 $16) 41... Rh1+ {[%emt 0:00:02]} (41... Rb3 $1 $11 {keeps the balance.}) 42. Rh2 {[%emt 0:00:06]} Rf1 {[%emt 0:00:01]} 43. Re3 {[%emt 0:00:01]} Rb1 {[%emt 0:00:06] [#]} (43... Kg7 $142 44. Rhe2 Kf7) 44. g4 $1 $16 {[%emt 0:00:03][%cal Bg3g4,Bg4g5][%mdl 32]} Rb4 {[%emt 0:00:06]} (44... g5 $16) 45. g5 $18 {[%emt 0:00:04]} Bg7 {[%emt 0:00:01]} 46. Rc2 {[%emt 0:00:02]} Rb7 {[%emt 0:00:02]} 47. Rc6 {[%emt 0:00:03]} Rd7 {[%emt 0:00:03]} 48. Rb3 {[%emt 0:00:02]} Bf8 {[%emt 0:00:03]} 49. Kg3 {[%emt 0:00:03]} Rd6 $2 {[%emt 0:00:01]} (49... Bg7 50. Rc4 (50. Rbb6 e4 $16) 50... Ra7) 50. Rxd6 {[%emt 0:00:15]} exd6 {[%emt 0:00:02] KR-KB} 51. Kf2 {[%emt 0:00:05]} Be7 {[%emt 0:00:01]} 52. Ke3 {[%emt 0:00:02]} Ke6 {[%emt 0:00:05]} 53. Rb6 {[%emt 0:00:05]} Bd8 {[%emt 0:00:01]} 54. Ra6 {[%emt 0:00:03]} Be7 {[%emt 0:00:03]} 55. Ra8 {[%emt 0:00:07]} (55. Ra7 $142 Kf7 56. f4 exf4+ 57. Kxf4) 55... Kf7 {[%emt 0:00:02]} 56. Rb8 {[%emt 0:00:12]} Ke6 {[%emt 0:00:02]} 57. Rh8 {[%emt 0:00:01] Threatens to win with Rh6.} d5 {[%emt 0:00:03]} 58. Ra8 {[%emt 0:00:05]} Bc5+ {[%emt 0:00:01] [#]} 59. Kd3 $2 {[%emt 0:00:02]} ({White has to play} 59. Ke2 $1 $18) 59... Bf2 $1 $11 {[%emt 0:00:00]} 60. Ra6+ {[%emt 0:00:14]} Kf7 {[%emt 0:00:00]} 61. Ra4 {[%emt 0:00:09]} Ke6 {[%emt 0:00:00]} 62. Ra6+ {[%emt 0:00:25]} Kf7 {[%emt 0:00:00]} 63. f4 {[%emt 0:00:02]} e4+ $2 {[%emt 0:00:00][%mdl 8192] Black cannot hold the game after this.} (63... exf4 $11 64. Rf6+ Ke7) 64. Ke2 $18 {[%emt 0:00:02]} Bxh4 {[%emt 0:00:00]} 65. Rf6+ {[%emt 0:00:03]} (65. Rd6 $142 Bg3 66. Ke3 h4 67. Rxd5 Ke6 68. Re5+ Kf7 69. Rxe4 h3 70. Rd4 (70. Kf3 h2 $18)) 65... Kg7 {[%emt 0:00:00]} 66. Rd6 {[%emt 0:00:01] White mates.} Bg3 {[%emt 0:00:00]} 67. Ke3 {[%emt 0:00:01]} h4 {[%emt 0:00:00]} 68. Rd7+ {[%emt 0:00:10]} Kf8 {[%emt 0:00:00]} 69. Rxd5 {[%emt 0:00:04]} h3 {[%emt 0:00:00]} 70. Rd1 {[%emt 0:00:08]} h2 {[%emt 0:00:00]} 71. Rh1 {[%emt 0:00:01]} Kf7 {[%emt 0:00:03]} 72. Kxe4 {[%emt 0:00:01]} Ke6 73. Kf3 {[%emt 0:00:01] Weighted Error Value: White=0.32/Black=0.21 (precise)} 1-0

[Event "Super United Croatia GCT Blitz 2022"]
[Site "Zagreb"]
[Date "2022.07.23"]
[Round "5"]
[White "Topalov, Veselin"]
[Black "So, Wesley"]
[Result "1/2-1/2"]
[ECO "A28"]
[WhiteElo "2728"]
[BlackElo "2773"]
[Annotator "TA"]
[PlyCount "31"]
[EventDate "2022.07.20"]
[EventType "tourn"]
[EventCountry "CRO"]
[SourceTitle "playchess.com"]
[Source "ChessBase"]
[SourceQuality "1"]
[TimeControl "300+2"]

{[%evp 10,31,6,-20,-4,-12,0,-11,0,0,22,0,0,0,0,0,0,0,0,0,0,0,0,0]} 1. c4 {[%emt 0:00:02]} Nf6 {[%emt 0:00:01]} 2. Nc3 {[%emt 0:00:01]} e5 {[%emt 0:00:01]} 3. Nf3 {[%emt 0:00:02]} Nc6 {[%emt 0:00:01]} 4. a3 {[%emt 0:00:01]} d5 {[%emt 0:00:04]} 5. cxd5 {[%emt 0:00:01]} Nxd5 {[%emt 0:00:02]} 6. d3 {[%emt 0:00:05] The position is equal.} Be7 {[%emt 0:00:13] A28: English Opening: Four Knights Variation.} 7. e3 {[%emt 0:00:02]} Be6 {[%emt 0:00:06] was the old line (7...0-0).} 8. Be2 {[%emt 0:00:02]} Qd7 {[%emt 0:00:07]} 9. Qc2 {[%emt 0:00:08] [#]} f5 $146 {[%emt 0:00:14]} ({Predecessor:} 9... O-O 10. O-O f6 11. Bd2 Rad8 12. Rac1 Nxc3 13. Bxc3 Bd5 14. Rfd1 {½-½ (14) Farkas,T (2276)-Keresztes,R (2255) Kecskemet 2011}) 10. Nxd5 {[%emt 0:00:20]} Bxd5 {[%emt 0:00:05]} 11. b4 {[%emt 0:00:06]} e4 {[%emt 0:00:20]} 12. dxe4 {[%emt 0:00:04]} Bxe4 {[%emt 0:00:01]} 13. Qb3 {[%emt 0:00:01]} Bd5 {[%emt 0:00:07]} 14. Qc2 {[%emt 0:00:07]} Be4 {[%emt 0:00:05]} 15. Qb3 {[%emt 0:00:10]} Bd5 {[%emt 0:00:03]} 16. Qc2 {[%emt 0:00:15] Not much happened in this game.  Weighted Error Value: White=0.05 (flawless) /Black=0.07 (flawless)} 1/2-1/2

[Event "Super United Croatia GCT Blitz 2022"]
[Site "Zagreb"]
[Date "2022.07.23"]
[Round "5"]
[White "Van Foreest, Jorden"]
[Black "Dominguez Perez, Leinier"]
[Result "1/2-1/2"]
[ECO "C42"]
[WhiteElo "2678"]
[BlackElo "2754"]
[Annotator "TA"]
[PlyCount "89"]
[EventDate "2022.07.20"]
[EventType "tourn"]
[EventCountry "CRO"]
[SourceTitle "playchess.com"]
[Source "ChessBase"]
[SourceQuality "1"]
[TimeControl "300+2"]

{[%evp 16,89,50,35,38,46,40,43,39,23,29,24,36,20,25,30,22,22,36,14,13,22,21,0,0,0,0,0,0,8,3,0,20,2,10,0,0,0,0,0,0,-10,0,0,0,0,0,0,0,0,0,0,0,0,0,0,0,0,0,-23,0,0,0,0,0,0,0,0,0,0,0,0,0,0,0,0]} 1. e4 {[%emt 0:00:01]} e5 {[%emt 0:00:01]} 2. Nf3 {[%emt 0:00:02]} Nf6 {[%emt 0:00:01]} 3. Nxe5 {[%emt 0:00:01]} d6 {[%emt 0:00:01]} 4. Nf3 {[%emt 0:00:02]} Nxe4 {[%emt 0:00:01]} 5. d4 {[%emt 0:00:01]} d5 {[%emt 0:00:01]} 6. Bd3 {[%emt 0:00:01]} Nc6 {[%emt 0:00:01]} 7. O-O {[%emt 0:00:04][%cal Bh1f1,Bf1e1,Be1e2][%mdl 32]} Be7 {[%emt 0:00:01]} 8. Nbd2 $1 {[%emt 0:00:12][%mdl 4] is now more promising than 8.c4.} Bf5 {[%emt 0:00:01]} 9. Re1 {[%emt 0:00:04][%cal Rd2e4]} Nxd2 {[%emt 0:00:02] C42: Petroff Defence: 3 Nxe5 and unusual White 3rd moves.} 10. Qxd2 {[%emt 0:00:01]} Bxd3 {[%emt 0:00:01]} 11. Qxd3 {[%emt 0:00:02]} O-O {[%emt 0:00:02] White is slightly better.} 12. Re2 {[%emt 0:00:02]} Qd7 {[%emt 0:00:04]} 13. Bf4 {[%emt 0:00:05]} Rfe8 {[%emt 0:00:01]} 14. Rae1 {[%emt 0:00:04]} Bf8 {[%emt 0:00:01]} 15. c3 {[%emt 0:00:05]} Rxe2 {[%emt 0:00:02]} 16. Rxe2 {[%emt 0:00:07]} Ne7 {[%emt 0:00:04]} 17. h4 {[%emt 0:00:20] [#]} c6 $146 {[%emt 0:00:25]} ({Predecessor:} 17... f6 18. Nh2 Ng6 19. Bg3 c6 20. h5 Ne7 21. Bf4 Re8 22. Re3 h6 23. Kf1 Kh8 {1-0 (89) Raja,H (2423)-Kolbus,D (2320) Douglas 2017}) 18. Ne5 {[%emt 0:01:00]} Qf5 {[%emt 0:00:02]} 19. Qxf5 {[%emt 0:00:32]} Nxf5 {[%emt 0:00:01]} 20. h5 {[%emt 0:00:34]} f6 {[%emt 0:01:45]} 21. Nd7 {[%emt 0:00:41]} Rd8 {[%emt 0:00:52]} 22. Nxf8 {[%emt 0:00:04]} Kxf8 $11 {[%emt 0:00:01][%mdl 4096] Endgame KRB-KRN} 23. g4 {[%emt 0:00:02]} Ne7 {[%emt 0:00:20]} 24. Kg2 {[%emt 0:00:07]} Kf7 {[%emt 0:00:01]} 25. a4 {[%emt 0:00:03]} Re8 {[%emt 0:00:09]} 26. f3 {[%emt 0:00:08]} Nc8 {[%emt 0:00:23]} 27. Rxe8 {[%emt 0:00:03]} Kxe8 {[%emt 0:00:00] KB-KN} 28. Kf2 {[%emt 0:00:03]} g6 {[%emt 0:00:17]} 29. hxg6 {[%emt 0:00:02]} hxg6 {[%emt 0:00:01]} 30. Ke3 {[%emt 0:00:02]} Kd7 {[%emt 0:00:01]} 31. b3 {[%emt 0:00:02]} b5 {[%emt 0:00:14]} 32. a5 {[%emt 0:00:09]} a6 {[%emt 0:00:03]} 33. b4 {[%emt 0:00:02]} Ke6 {[%emt 0:00:05]} 34. Bg3 {[%emt 0:00:01]} Ne7 {[%emt 0:00:03]} 35. Bf4 {[%emt 0:00:02]} g5 {[%emt 0:00:05]} 36. Bg3 {[%emt 0:00:02]} f5 {[%emt 0:00:02]} 37. Ke2 {[%emt 0:00:05]} fxg4 {[%emt 0:00:22]} (37... f4 $5 {[%cal Rf4g3]} 38. Be1 Ng6 $11) 38. fxg4 {[%emt 0:00:02] The position is equal.} Ng8 {[%emt 0:00:00]} 39. Be5 {[%emt 0:00:09]} Nh6 {[%emt 0:00:07]} 40. Kf3 {[%emt 0:00:02]} Nf7 {[%emt 0:00:00]} 41. Bg3 {[%emt 0:00:02]} Kf6 {[%emt 0:00:12]} 42. Bh2 {[%emt 0:00:04]} Ke6 {[%emt 0:00:02]} 43. Bg3 {[%emt 0:00:01]} Kf6 {[%emt 0:00:01]} 44. Bh2 {[%emt 0:00:01]} Ke6 {[%emt 0:00:00]} 45. Bg3 {Weighted Error Value: White=0.05 (flawless) /Black=0.03 (flawless)} 1/2-1/2

[Event "Super United Croatia GCT Blitz 2022"]
[Site "Zagreb"]
[Date "2022.07.23"]
[Round "6"]
[White "Nepomniachtchi, Ian"]
[Black "Carlsen, Magnus"]
[Result "0-1"]
[ECO "A30"]
[WhiteElo "2766"]
[BlackElo "2864"]
[Annotator "TA"]
[PlyCount "112"]
[EventDate "2022.07.20"]
[EventType "tourn"]
[EventCountry "CRO"]
[SourceTitle "playchess.com"]
[Source "ChessBase"]
[SourceQuality "1"]
[TimeControl "300+2"]

{[%evp 10,112,10,21,15,12,31,15,3,16,0,6,35,22,20,22,20,29,51,25,52,21,30,14,12,11,4,0,0,0,0,0,0,0,1,3,18,7,29,0,28,8,23,11,8,0,0,0,0,0,15,8,8,8,11,0,2,0,2,0,0,-98,-105,-105,-106,-106,-106,-106,-109,-100,-107,-106,-70,-88,-88,-88,-86,-256,-256,-249,-249,-445,-360,-371,-361,-354,-308,-383,-352,-361,-354,-1187,-4723,-5795,-5414,-12842,-12791,-6079,-5602,-5602,-5602,-29992,-29986,-29993,-29994]} 1. Nf3 {[%emt 0:00:01]} Nf6 {[%emt 0:00:01]} 2. g3 {[%emt 0:00:02]} c5 {[%emt 0:00:03]} 3. Bg2 {[%emt 0:00:01]} Nc6 {[%emt 0:00:02]} 4. O-O {[%emt 0:00:20]} e5 {[%emt 0:00:01]} 5. c4 {[%emt 0:00:04]} d5 {[%emt 0:00:04]} 6. Qa4 {[%emt 0:00:06] Black must now prevent Nxe5.} Bd6 {[%emt 0:00:18] A30: Symmetrical English: Double Fianchetto and Hedgehog.} 7. d4 {[%emt 0:00:04]} exd4 {[%emt 0:00:36]} (7... cxd4 {is more complex.} 8. cxd5 Qa5 9. Qxa5 Nxa5 10. Bg5 Bg4) 8. cxd5 {[%emt 0:00:28]} Nxd5 {[%emt 0:00:01] [#] The position is equal.} 9. Nxd4 $1 {[%emt 0:00:05]} cxd4 {[%emt 0:00:04]} 10. Bxd5 {[%emt 0:00:01]} O-O {[%emt 0:00:23]} 11. Bxc6 {[%emt 0:00:04]} bxc6 {[%emt 0:00:02]} 12. Qxd4 {[%emt 0:00:01] [#]} Bh3 $146 {[%emt 0:00:07] A strong pair of Bishops.} ({Predecessor:} 12... Qe7 13. Nc3 Be5 14. Qe4 Re8 15. Be3 Rb8 16. Qc2 h5 17. Rad1 Bh3 18. Rfe1 Bxc3 19. bxc3 {½-½ (32) Caruana,F (2807)-Nepomniachtchi,I (2751) Saint Louis 2017}) 13. Re1 {[%emt 0:00:58]} Rb8 {[%emt 0:00:07]} 14. Nc3 {[%emt 0:00:01]} Qe7 {[%emt 0:00:22]} 15. Bg5 {[%emt 0:00:36]} Qe6 {[%emt 0:00:10]} 16. Bf4 {[%emt 0:00:29]} (16. Rad1 $5 {[%cal Rd4d6]} Be5 17. Qd2 $14) 16... Bxf4 {[%emt 0:00:02]} 17. Qxf4 {[%emt 0:00:01]} Rxb2 {[%emt 0:00:02]} 18. Rad1 {[%emt 0:00:14]} Qf5 {[%emt 0:01:19]} 19. Qxf5 {[%emt 0:00:16]} Bxf5 {[%emt 0:00:01]} 20. Rd6 {[%emt 0:00:00]} Rc8 {[%emt 0:00:05]} 21. Rc1 {[%emt 0:00:01]} Kf8 {[%emt 0:00:04]} 22. Rd4 {[%emt 0:00:10]} Be6 {[%emt 0:00:07]} 23. Ra4 {[%emt 0:00:02]} Rc7 {[%emt 0:00:03]} 24. f3 {[%emt 0:00:15]} c5 {[%emt 0:00:04]} 25. Kf2 {[%emt 0:00:01]} h5 {[%emt 0:00:03]} 26. h4 {[%emt 0:00:03]} g6 {[%emt 0:00:01]} 27. Ra5 {[%emt 0:00:09]} Bc4 {[%emt 0:00:08]} 28. Ra4 {[%emt 0:00:06]} Be6 {[%emt 0:00:01]} 29. Ra5 {[%emt 0:00:04]} Kg7 {[%emt 0:00:01]} 30. Nb5 {[%emt 0:00:16]} Rd7 {[%emt 0:01:07]} 31. Rxc5 {[%emt 0:00:03]} Bxa2 {[%emt 0:00:09]} 32. Nc3 {[%emt 0:00:15]} ({Don't go for} 32. Nxa7 $2 Rdd2 33. Re5 Bc4 $19) 32... Be6 {[%emt 0:00:01]} 33. Ra3 {[%emt 0:00:02]} Rc2 {[%emt 0:00:05]} 34. Ne4 {[%emt 0:00:15]} Bc4 {[%emt 0:00:02]} 35. Nc3 {[%emt 0:00:02] [#]} (35. Re3 $11 {keeps the balance.}) 35... Bxe2 $1 $17 {[%emt 0:00:04] Strongly threatening ...Bc4+. Black is more active.} 36. Ra2 {[%emt 0:00:06]} Rxa2 {[%emt 0:00:06]} 37. Nxa2 {[%emt 0:00:01][%mdl 4096] Endgame KRB-KRN} Rd2 {[%emt 0:00:02]} 38. Nc3 {[%emt 0:00:06]} Ba6+ {[%emt 0:00:05]} 39. Ke3 {[%emt 0:00:03]} Rd3+ {[%emt 0:00:01]} 40. Ke4 {[%emt 0:00:01]} Rd7 {[%emt 0:00:06] Against Rc7} 41. Ra5 {[%emt 0:00:03]} Bb7+ {[%emt 0:00:01]} 42. Ke3 {[%emt 0:00:01]} a6 {[%emt 0:00:03]} 43. Na4 $2 {[%emt 0:00:05] Loses the game.} (43. Rc5 $17) 43... Rd5 $19 {[%emt 0:00:01]} 44. Nc5 {[%emt 0:00:03]} Bc6 {[%emt 0:00:01]} 45. Kf2 $2 {[%emt 0:00:05]} (45. f4) 45... Kg8 {[%emt 0:00:05]} 46. Ke3 {[%emt 0:00:01]} f6 {[%emt 0:00:01][%cal Bf7f6,Bf6g5,Bg5h4,Bh4h3][%mdl 32]} 47. Kf2 {[%emt 0:00:03]} Kf7 {[%emt 0:00:01]} 48. Ke3 {[%emt 0:00:01]} g5 {[%emt 0:00:03]} 49. hxg5 {[%emt 0:00:14]} fxg5 {[%emt 0:00:01]} ({Weaker is} 49... Rxg5 50. Kd4 $17) 50. f4 $2 {[%emt 0:00:00]} (50. Kf2) 50... h4 {[%emt 0:00:03]} 51. gxh4 {[%emt 0:00:05]} gxh4 {[%emt 0:00:01]} 52. Kf2 {[%emt 0:00:01]} Kg6 {[%emt 0:00:08]} 53. Kg1 {[%emt 0:00:03]} Kf5 {[%emt 0:00:03]} 54. Kh2 {[%emt 0:00:01]} Kg4 {[%emt 0:00:02] ( -> ...Rd2+)} 55. f5 {[%emt 0:00:05]} Rd2+ {[%emt 0:00:01]} 56. Kg1 {[%emt 0:00:01]} h3 {[%emt 0:00:02] Weighted Error Value: White=0.58/Black=0.15 (very precise)} 0-1